Workbook

Sheet Rif
K5: f N/mm2 | M5: t0 N/mm2 | O5: fv0 N/mm2 | Q5: E N/mm2 | S5: G N/mm2 | U5: w KN/m3 | X5: Malta buona | Z5: ricorsi o listature | AB5: connessione trasversale
D6: Mesistente | K6: min | L6: max | M6: min | N6: max | O6: min | P6: max | Q6: min | R6: max | S6: min | T6: max | U6: min | V6: max | X6: TRUE | Y6: FALSE | Z6: TRUE | AA6: FALSE | AB6: TRUE | AC6: FALSE
D7: Muratura in pietrame disordinata | K7: 1 | L7: 2 | M7: 0.018 | N7: 0.032 | O7: - | P7: - | Q7: 690 | R7: 1050 | S7: 230 | T7: 350 | U7: 19 | V7: 19 | W7: Muratura in pietrame disordinata | X7: 1.5 | Y7: 1 | Z7: 1.3 | AA7: 1 | AB7: 1.5 | AC7: 1
D8: Muratura a conci sbozzati, con paramenti di spessore disomogeneo | K8: 2 | L8: 2 | M8: 0.035 | N8: 0.051 | O8: - | P8: - | Q8: 1020 | R8: 1440 | S8: 340 | T8: 480 | U8: 20 | V8: 20 | W8: Muratura a conci sbozzati, con paramenti di spessore disomogeneo | X8: 1.4 | Y8: 1 | Z8: 1.2 | AA8: 1 | AB8: 1.5 | AC8: 1 | CV8: f N/mm2 | CX8: t0 N/mm2 | CZ8: fv0 N/mm2 | DB8: E N/mm2 | DD8: G N/mm2 | DF8: w KN/m3 | DI8: Malta buona | DK8: ricorsi o listature | DM8: connessione trasversale
D9: Muratura in pietre a spacco con buona tessitura | K9: 2.6 | L9: 3.8 | M9: 0.056 | N9: 0.074 | O9: - | P9: - | Q9: 1500 | R9: 1980 | S9: 500 | T9: 660 | U9: 21 | V9: 21 | W9: Muratura in pietre a spacco con buona tessitura | X9: 1.3 | Y9: 1 | Z9: 1.1 | AA9: 1 | AB9: 1.3 | AC9: 1 | BB9: f N/mm2 | BD9: t0 N/mm2 | BF9: fv0 N/mm2 | BH9: E N/mm2 | BJ9: G N/mm2 | BL9: w KN/m3 | BO9: Malta buona | BQ9: ricorsi o listature | BS9: connessione trasversale | CO9: Mesistente | CV9: min | CW9: max | CX9: min | CY9: max | CZ9: min | DA9: max | DB9: min | DC9: max | DD9: min | DE9: max | DF9: min | DG9: max | DI9: TRUE | DJ9: FALSE | DK9: TRUE | DL9: FALSE | DM9: TRUE | DN9: FALSE
D10: Muratura irregolare di pietra tenera | K10: 1.4 | L10: 2.2 | M10: 0.028 | N10: 0.042 | O10: - | P10: - | Q10: 900 | R10: 1260 | S10: 300 | T10: 420 | U10: 14.5 | V10: 14.5 | W10: Muratura irregolare di pietra tenera | X10: 1.5 | Y10: 1 | Z10: 1.2 | AA10: 1 | AB10: 1.3 | AC10: 1 | AU10: Mesistente | BB10: min | BC10: max | BD10: min | BE10: max | BF10: min | BG10: max | BH10: min | BI10: max | BJ10: min | BK10: max | BL10: min | BM10: max | BO10: TRUE | BP10: FALSE | BQ10: TRUE | BR10: FALSE | BS10: TRUE | BT10: FALSE | CO10: Muratura in pietrame disordinata | CV10: 1 | CW10: 2 | CX10: 0.018 | CY10: 0.032 | CZ10: - | DA10: - | DB10: 690 | DC10: 1050 | DD10: 230 | DE10: 350 | DF10: 19 | DG10: 19 | DH10: Muratura in pietrame disordinata | DI10: 1.5 | DJ10: 1 | DK10: 1.3 | DL10: 1 | DM10: 1.5 | DN10: 1
D11: Muratura a conci regolari di pietra tenera | K11: 2 | L11: 3.2 | M11: 0.04 | N11: 0.08 | O11: 0.1 | P11: 0.19 | Q11: 1200 | R11: 1620 | S11: 400 | T11: 500 | U11: 14.5 | V11: 14.5 | W11: Muratura a conci regolari di pietra tenera | X11: 1.6 | Y11: 1 | Z11: 1 | AA11: 1 | AB11: 1.2 | AC11: 1 | AU11: Muratura in pietrame disordinata | BB11: 1 | BC11: 2 | BD11: 0.018 | BE11: 0.032 | BF11: - | BG11: - | BH11: 690 | BI11: 1050 | BJ11: 230 | BK11: 350 | BL11: 19 | BM11: 19 | BN11: Muratura in pietrame disordinata | BO11: 1.5 | BP11: 1 | BQ11: 1.3 | BR11: 1 | BS11: 1.5 | BT11: 1 | CO11: Muratura a conci sbozzati, con paramenti di spessore disomogeneo | CV11: 2 | CW11: 2 | CX11: 0.035 | CY11: 0.051 | CZ11: - | DA11: - | DB11: 1020 | DC11: 1440 | DD11: 340 | DE11: 480 | DF11: 20 | DG11: 20 | DH11: Muratura a conci sbozzati, con paramenti di spessore disomogeneo | DI11: 1.4 | DJ11: 1 | DK11: 1.2 | DL11: 1 | DM11: 1.5 | DN11: 1
D12: Muratura a blocchi lapidei squadrati | K12: 5.8 | L12: 8.2 | M12: 0.09 | N12: 0.12 | O12: 0.18 | P12: 0.28 | Q12: 2400 | R12: 3300 | S12: 800 | T12: 1100 | U12: 22 | V12: 22 | W12: Muratura a blocchi lapidei squadrati | X12: 1.2 | Y12: 1 | Z12: 1 | AA12: 1 | AB12: 1.2 | AC12: 1 | AU12: Muratura a conci sbozzati, con paramenti di spessore disomogeneo | BB12: 2 | BC12: 2 | BD12: 0.035 | BE12: 0.051 | BF12: - | BG12: - | BH12: 1020 | BI12: 1440 | BJ12: 340 | BK12: 480 | BL12: 20 | BM12: 20 | BN12: Muratura a conci sbozzati, con paramenti di spessore disomogeneo | BO12: 1.4 | BP12: 1 | BQ12: 1.2 | BR12: 1 | BS12: 1.5 | BT12: 1 | CO12: Muratura in pietre a spacco con buona tessitura | CV12: 2.6 | CW12: 3.8 | CX12: 0.056 | CY12: 0.074 | CZ12: - | DA12: - | DB12: 1500 | DC12: 1980 | DD12: 500 | DE12: 660 | DF12: 21 | DG12: 21 | DH12: Muratura in pietre a spacco con buona tessitura | DI12: 1.3 | DJ12: 1 | DK12: 1.1 | DL12: 1 | DM12: 1.3 | DN12: 1
D13: Muratura in mattoni pieni e malta di calce | K13: 2.6 | L13: 4.3 | M13: 0.05 | N13: 0.13 | O13: 0.13 | P13: 0.27 | Q13: 1200 | R13: 1800 | S13: 400 | T13: 600 | U13: 18 | V13: 18 | W13: Muratura in mattoni pieni e malta di calce | X13: =K20^0.35 -> 1 | Y13: 1 | Z13: 1 | AA13: 1 | AB13: 1.3 | AC13: 1 | AU13: Muratura in pietre a spacco con buona tessitura | BB13: 2.6 | BC13: 3.8 | BD13: 0.056 | BE13: 0.074 | BF13: - | BG13: - | BH13: 1500 | BI13: 1980 | BJ13: 500 | BK13: 660 | BL13: 21 | BM13: 21 | BN13: Muratura in pietre a spacco con buona tessitura | BO13: 1.3 | BP13: 1 | BQ13: 1.1 | BR13: 1 | BS13: 1.3 | BT13: 1 | CO13: Muratura irregolare di pietra tenera | CV13: 1.4 | CW13: 2.2 | CX13: 0.028 | CY13: 0.042 | CZ13: - | DA13: - | DB13: 900 | DC13: 1260 | DD13: 300 | DE13: 420 | DF13: 14.5 | DG13: 14.5 | DH13: Muratura irregolare di pietra tenera | DI13: 1.5 | DJ13: 1 | DK13: 1.2 | DL13: 1 | DM13: 1.3 | DN13: 1
D14: Muratura in mattoni semipieni con malta cementizia | K14: 5 | L14: 8 | M14: 0.08 | N14: 0.17 | O14: 0.2 | P14: 0.36 | Q14: 3500 | R14: 5600 | S14: 875 | T14: 1400 | U14: 15 | V14: 15 | W14: Muratura in mattoni semipieni con malta cementizia | X14: 1.2 | Y14: 1 | Z14: 1 | AA14: 1 | AB14: 1 | AC14: 1 | AU14: Muratura irregolare di pietra tenera | BB14: 1.4 | BC14: 2.2 | BD14: 0.028 | BE14: 0.042 | BF14: - | BG14: - | BH14: 900 | BI14: 1260 | BJ14: 300 | BK14: 420 | BL14: 14.5 | BM14: 14.5 | BN14: Muratura irregolare di pietra tenera | BO14: 1.5 | BP14: 1 | BQ14: 1.2 | BR14: 1 | BS14: 1.3 | BT14: 1 | CO14: Muratura a conci regolari di pietra tenera | CV14: 2 | CW14: 3.2 | CX14: 0.04 | CY14: 0.08 | CZ14: 0.1 | DA14: 0.19 | DB14: 1200 | DC14: 1620 | DD14: 400 | DE14: 500 | DF14: 14.5 | DG14: 14.5 | DH14: Muratura a conci regolari di pietra tenera | DI14: 1.6 | DJ14: 1 | DK14: 1 | DL14: 1 | DM14: 1.2 | DN14: 1
D15: Muratura in pietrame disordinata | K15: =VLOOKUP(Rif!$D$15,$D$7:$V$14,8,FALSE) -> 1 | L15: =VLOOKUP(Rif!$D$15,$D$7:$V$14,9,FALSE) -> 2 | M15: =VLOOKUP(Rif!$D$15,$D$7:$V$14,10,FALSE) -> 0.018 | N15: =VLOOKUP(Rif!$D$15,$D$7:$V$14,11,FALSE) -> 0.032 | O15: =VLOOKUP(Rif!$D$15,$D$7:$V$14,12,FALSE) -> - | P15: =VLOOKUP(Rif!$D$15,$D$7:$V$14,13,FALSE) -> - | Q15: =VLOOKUP(Rif!$D$15,$D$7:$V$14,14,FALSE) -> 690 | R15: =VLOOKUP(Rif!$D$15,$D$7:$V$14,15,FALSE) -> 1050 | S15: =VLOOKUP(Rif!$D$15,$D$7:$V$14,16,FALSE) -> 230 | T15: =VLOOKUP(Rif!$D$15,$D$7:$V$14,17,FALSE) -> 350 | U15: =VLOOKUP(Rif!$D$15,$D$7:$V$14,18,FALSE) -> 19 | V15: =VLOOKUP(Rif!$D$15,$D$7:$V$14,19,FALSE) -> 19 | X15: =VLOOKUP(Rif!$D$15,$W$7:$AC$14,2,FALSE) -> 1.5 | Y15: =VLOOKUP(Rif!$D$15,$W$7:$AC$14,3,FALSE) -> 1 | Z15: =VLOOKUP(Rif!$D$15,$W$7:$AC$14,4,FALSE) -> 1.3 | AA15: =VLOOKUP(Rif!$D$15,$W$7:$AC$14,5,FALSE) -> 1 | AB15: =VLOOKUP(Rif!$D$15,$W$7:$AC$14,6,FALSE) -> 1.5 | AC15: =VLOOKUP(Rif!$D$15,$W$7:$AC$14,7,FALSE) -> 1 | AU15: Muratura a conci regolari di pietra tenera | BB15: 2 | BC15: 3.2 | BD15: 0.04 | BE15: 0.08 | BF15: 0.1 | BG15: 0.19 | BH15: 1200 | BI15: 1620 | BJ15: 400 | BK15: 500 | BL15: 14.5 | BM15: 14.5 | BN15: Muratura a conci regolari di pietra tenera | BO15: 1.6 | BP15: 1 | BQ15: 1 | BR15: 1 | BS15: 1.2 | BT15: 1 | CO15: Muratura a blocchi lapidei squadrati | CV15: 5.8 | CW15: 8.2 | CX15: 0.09 | CY15: 0.12 | CZ15: 0.18 | DA15: 0.28 | DB15: 2400 | DC15: 3300 | DD15: 800 | DE15: 1100 | DF15: 22 | DG15: 22 | DH15: Muratura a blocchi lapidei squadrati | DI15: 1.2 | DJ15: 1 | DK15: 1 | DL15: 1 | DM15: 1.2 | DN15: 1
AU16: Muratura a blocchi lapidei squadrati | BB16: 5.8 | BC16: 8.2 | BD16: 0.09 | BE16: 0.12 | BF16: 0.18 | BG16: 0.28 | BH16: 2400 | BI16: 3300 | BJ16: 800 | BK16: 1100 | BL16: 22 | BM16: 22 | BN16: Muratura a blocchi lapidei squadrati | BO16: 1.2 | BP16: 1 | BQ16: 1 | BR16: 1 | BS16: 1.2 | BT16: 1 | CO16: Muratura in mattoni pieni e malta di calce | CV16: 2.6 | CW16: 4.3 | CX16: 0.05 | CY16: 0.13 | CZ16: 0.13 | DA16: 0.27 | DB16: 1200 | DC16: 1800 | DD16: 400 | DE16: 600 | DF16: 18 | DG16: 18 | DH16: Muratura in mattoni pieni e malta di calce | DI16: =CV23^0.35 ->  | DJ16: 1 | DK16: 1 | DL16: 1 | DM16: 1.3 | DN16: 1
F17: 1 | G17: =VLOOKUP(F17,I17:J19,2) -> LC1 | I17: 1 | J17: LC1 | K17: =MIN(K15:L15) -> 1 | M17: =MIN(M15:N15) -> 0.018 | O17: =MIN(O15:P15) -> 0 | Q17: =AVERAGE(Q15:R15) -> 870 | S17: =AVERAGE(S15:T15) -> 290 | X17: Malta | Z17: ricorsi | AB17: conn | AF17: Coeff migliorativi | AU17: Muratura in mattoni pieni e malta di calce | BB17: 2.6 | BC17: 4.3 | BD17: 0.05 | BE17: 0.13 | BF17: 0.13 | BG17: 0.27 | BH17: 1200 | BI17: 1800 | BJ17: 400 | BK17: 600 | BL17: 18 | BM17: 18 | BN17: Muratura in mattoni pieni e malta di calce | BO17: =BB24^0.35 ->  | BP17: 1 | BQ17: 1 | BR17: 1 | BS17: 1.3 | BT17: 1 | CO17: Muratura in mattoni semipieni con malta cementizia | CV17: 5 | CW17: 8 | CX17: 0.08 | CY17: 0.17 | CZ17: 0.2 | DA17: 0.36 | DB17: 3500 | DC17: 5600 | DD17: 875 | DE17: 1400 | DF17: 15 | DG17: 15 | DH17: Muratura in mattoni semipieni con malta cementizia | DI17: 1.2 | DJ17: 1 | DK17: 1 | DL17: 1 | DM17: 1 | DN17: 1
I18: 2 | J18: LC2 | K18: =AVERAGE(K15:L15) -> 1.5 | M18: =AVERAGE(M15:N15) -> 0.025 | O18: =AVERAGE(O15:P15) ->  | Q18: =AVERAGE(Q15:R15) -> 870 | S18: =AVERAGE(S15:T15) -> 290 | W18: TRUE | X18: =X15 -> 1.5 | Z18: =Z15 -> 1.3 | AB18: =AB15 -> 1.5 | AF18: FALSE | AG18: malta buona | AU18: Muratura in mattoni semipieni con malta cementizia | BB18: 5 | BC18: 8 | BD18: 0.08 | BE18: 0.17 | BF18: 0.2 | BG18: 0.36 | BH18: 3500 | BI18: 5600 | BJ18: 875 | BK18: 1400 | BL18: 15 | BM18: 15 | BN18: Muratura in mattoni semipieni con malta cementizia | BO18: 1.2 | BP18: 1 | BQ18: 1 | BR18: 1 | BS18: 1 | BT18: 1 | CV18: =VLOOKUP(#REF!,$CO$10:$DG$17,8,FALSE) ->  | CW18: =VLOOKUP(#REF!,$CO$10:$DG$17,9,FALSE) ->  | CX18: =VLOOKUP(#REF!,$CO$10:$DG$17,10,FALSE) ->  | CY18: =VLOOKUP(#REF!,$CO$10:$DG$17,11,FALSE) ->  | CZ18: =VLOOKUP(#REF!,$CO$10:$DG$17,12,FALSE) ->  | DA18: =VLOOKUP(#REF!,$CO$10:$DG$17,13,FALSE) ->  | DB18: =VLOOKUP(#REF!,$CO$10:$DG$17,14,FALSE) ->  | DC18: =VLOOKUP(#REF!,$CO$10:$DG$17,15,FALSE) ->  | DD18: =VLOOKUP(#REF!,$CO$10:$DG$17,16,FALSE) ->  | DE18: =VLOOKUP(#REF!,$CO$10:$DG$17,17,FALSE) ->  | DF18: =VLOOKUP(#REF!,$CO$10:$DG$17,18,FALSE) ->  | DG18: =VLOOKUP(#REF!,$CO$10:$DG$17,19,FALSE) ->  | DI18: =VLOOKUP(#REF!,$DH$10:$DN$17,2,FALSE) ->  | DJ18: =VLOOKUP(#REF!,$DH$10:$DN$17,3,FALSE) ->  | DK18: =VLOOKUP(#REF!,$DH$10:$DN$17,4,FALSE) ->  | DL18: =VLOOKUP(#REF!,$DH$10:$DN$17,5,FALSE) ->  | DM18: =VLOOKUP(#REF!,$DH$10:$DN$17,6,FALSE) ->  | DN18: =VLOOKUP(#REF!,$DH$10:$DN$17,7,FALSE) -> 
I19: 3 | J19: LC3 | K19: =VALUE(L19) -> 1 | L19: 1 | M19: =VALUE(N19) -> 0.018 | N19: 0.018 | Q19: =VALUE(R19) -> 870 | R19: 870 | S19: =VALUE(T19) -> 290 | T19: 290 | W19: FALSE | X19: =Y15 -> 1 | Z19: =AA15 -> 1 | AB19: =AC15 -> 1 | AF19: FALSE | AG19: ricorsi o listature | BB19: =VLOOKUP(#REF!,$AU$11:$BM$18,8,FALSE) ->  | BC19: =VLOOKUP(#REF!,$AU$11:$BM$18,9,FALSE) ->  | BD19: =VLOOKUP(#REF!,$AU$11:$BM$18,10,FALSE) ->  | BE19: =VLOOKUP(#REF!,$AU$11:$BM$18,11,FALSE) ->  | BF19: =VLOOKUP(#REF!,$AU$11:$BM$18,12,FALSE) ->  | BG19: =VLOOKUP(#REF!,$AU$11:$BM$18,13,FALSE) ->  | BH19: =VLOOKUP(#REF!,$AU$11:$BM$18,14,FALSE) ->  | BI19: =VLOOKUP(#REF!,$AU$11:$BM$18,15,FALSE) ->  | BJ19: =VLOOKUP(#REF!,$AU$11:$BM$18,16,FALSE) ->  | BK19: =VLOOKUP(#REF!,$AU$11:$BM$18,17,FALSE) ->  | BL19: =VLOOKUP(#REF!,$AU$11:$BM$18,18,FALSE) ->  | BM19: =VLOOKUP(#REF!,$AU$11:$BM$18,19,FALSE) ->  | BO19: =VLOOKUP(#REF!,$BN$11:$BT$18,2,FALSE) ->  | BP19: =VLOOKUP(#REF!,$BN$11:$BT$18,3,FALSE) ->  | BQ19: =VLOOKUP(#REF!,$BN$11:$BT$18,4,FALSE) ->  | BR19: =VLOOKUP(#REF!,$BN$11:$BT$18,5,FALSE) ->  | BS19: =VLOOKUP(#REF!,$BN$11:$BT$18,6,FALSE) ->  | BT19: =VLOOKUP(#REF!,$BN$11:$BT$18,7,FALSE) -> 
K20: =VLOOKUP($G$17,$J$17:$T$19,2,FALSE) -> 1 | M20: =VLOOKUP($G$17,$J$17:$T$19,4,FALSE) -> 0.018 | O20: =VLOOKUP($G$17,$J$17:$T$19,6,FALSE) -> 0 | Q20: =VLOOKUP($G$17,$J$17:$T$19,8,FALSE) -> 870 | S20: =VLOOKUP($G$17,$J$17:$T$19,10,FALSE) -> 290 | X20: =VLOOKUP($AF$18,$W$18:$AC$19,2,FALSE) -> 1 | Z20: =VLOOKUP($AF$19,$W$18:$AC$19,4,FALSE) -> 1 | AB20: =VLOOKUP($AF$20,$W$18:$AC$19,6,FALSE) -> 1 | AF20: FALSE | AG20: connessione trasversale | CQ20: 3 | CR20: =VLOOKUP(CQ20,CT20:CU22,2) -> LC3 | CT20: 1 | CU20: LC1 | CV20: =MIN(CV18:CW18) ->  | CX20: =MIN(CX18:CY18) ->  | CZ20: =MIN(CZ18:DA18) ->  | DB20: =AVERAGE(DB18:DC18) ->  | DD20: =AVERAGE(DD18:DE18) ->  | DI20: Malta | DK20: ricorsi | DM20: conn | DQ20: Coeff migliorativi
K21: =IF(F17=I19,K20,(X20*Z20*AB20)/MIN(X20,Z20,AB20)*K20) -> 1 | M21: =IF(F17=I19,M20,(X20*Z20*AB20)/MIN(X20,Z20,AB20)*M20) -> 0.018 | Q21: =IF(F17=I19,Q20,X20*Q20) -> 870 | S21: =IF(F17=I19,S20,S20*X20) -> 290 | AW21: 3 | AX21: =VLOOKUP(AW21,AZ21:BA23,2) -> LC3 | AZ21: 1 | BA21: LC1 | BB21: =MIN(BB19:BC19) ->  | BD21: =MIN(BD19:BE19) ->  | BF21: =MIN(BF19:BG19) ->  | BH21: =AVERAGE(BH19:BI19) ->  | BJ21: =AVERAGE(BJ19:BK19) ->  | BO21: Malta | BQ21: ricorsi | BS21: conn | BW21: Coeff migliorativi | CT21: 2 | CU21: LC2 | CV21: =AVERAGE(CV18:CW18) ->  | CX21: =AVERAGE(CX18:CY18) ->  | CZ21: =AVERAGE(CZ18:DA18) ->  | DB21: =AVERAGE(DB18:DC18) ->  | DD21: =AVERAGE(DD18:DE18) ->  | DH21: TRUE | DI21: =DI18 ->  | DK21: =DK18 ->  | DM21: =DM18 ->  | DQ21: FALSE | DR21: malta buona
F22: Spessore muratura | AZ22: 2 | BA22: LC2 | BB22: =AVERAGE(BB19:BC19) ->  | BD22: =AVERAGE(BD19:BE19) ->  | BF22: =AVERAGE(BF19:BG19) ->  | BH22: =AVERAGE(BH19:BI19) ->  | BJ22: =AVERAGE(BJ19:BK19) ->  | BN22: TRUE | BO22: =BO19 ->  | BQ22: =BQ19 ->  | BS22: =BS19 ->  | BW22: FALSE | BX22: malta buona | CT22: 3 | CU22: LC3 | DH22: FALSE | DI22: =DJ18 ->  | DK22: =DL18 ->  | DM22: =DN18 ->  | DQ22: FALSE | DR22: ricorsi o listature
F23: 300 | AZ23: 3 | BA23: LC3 | BN23: FALSE | BO23: =BP19 ->  | BQ23: =BR19 ->  | BS23: =BT19 ->  | BW23: FALSE | BX23: ricorsi o listature | CV23: =VLOOKUP($CR$20,$CU$20:$DE$21,2,FALSE) ->  | CX23: =VLOOKUP($CR$20,$CU$20:$DE$21,4,FALSE) ->  | CZ23: =VLOOKUP($CR$20,$CU$20:$DE$21,6,FALSE) ->  | DB23: =VLOOKUP($CR$20,$CU$20:$DE$21,8,FALSE) ->  | DD23: =VLOOKUP($CR$20,$CU$20:$DE$21,10,FALSE) ->  | DI23: =VLOOKUP($DQ$21,$DH$21:$DN$22,2,FALSE) ->  | DK23: =VLOOKUP($DQ$22,$DH$21:$DN$22,4,FALSE) ->  | DM23: =VLOOKUP($DQ$23,$DH$21:$DN$22,6,FALSE) ->  | DQ23: FALSE | DR23: connessione trasversale
BB24: =VLOOKUP($AX$21,$BA$21:$BK$22,2,FALSE) ->  | BD24: =VLOOKUP($AX$21,$BA$21:$BK$22,4,FALSE) ->  | BF24: =VLOOKUP($AX$21,$BA$21:$BK$22,6,FALSE) ->  | BH24: =VLOOKUP($AX$21,$BA$21:$BK$22,8,FALSE) ->  | BJ24: =VLOOKUP($AX$21,$BA$21:$BK$22,10,FALSE) ->  | BO24: =VLOOKUP($BW$22,$BN$22:$BT$23,2,FALSE) ->  | BQ24: =VLOOKUP($BW$23,$BN$22:$BT$23,4,FALSE) ->  | BS24: =VLOOKUP($BW$24,$BN$22:$BT$23,6,FALSE) ->  | BW24: FALSE | BX24: connessione trasversale | CV24: =(DI23*DK23*DM23)/MIN(DI23,DK23,DM23)*CV23 ->  | CX24: =(DI23*DK23*DM23)/MIN(DI23,DK23,DM23)*CX23 ->  | DB24: =DI23*DB23 ->  | DD24: =DD23*DI23 -> 
D25: Mesistente | K25: b | L25: b' | Z25: Reti | AB25: ftmrete N | AC25: fcrete | AD25: Erete | AE25: passo mm | AF25: sez. mm2 | AG25: Ear | BB25: =(BO24*BQ24*BS24)/MIN(BO24,BQ24,BS24)*BB24 ->  | BD25: =(BO24*BQ24*BS24)/MIN(BO24,BQ24,BS24)*BD24 ->  | BH25: =BO24*BH24 ->  | BJ25: =BJ24*BO24 ->  | CQ25: Spessore muratura
D26: Muratura in pietrame disordinata | K26: 1.5 | L26: 1.4 | Z26: RG NET BA G33 | AB26: 4500 | AD26: 40000 | AE26: 33 | AF26: 7.065 | AG26: =AD26*AF26 -> 282600 | AW26: Spessore muratura | CQ26: 330
D27: Muratura a conci sbozzati, con paramenti di spessore disomogeneo | K27: 1.5 | L27: 1.4 | Z27: RG NET BA G66 | AB27: 4500 | AD27: 40000 | AE27: 66 | AF27: 7.065 | AG27: =AD27*AF27 -> 282600 | AW27: 330
D28: Muratura in pietre a spacco con buona tessitura | K28: 1.5 | L28: 1.2 | Z28: RG NET BA G99 | AB28: 4500 | AD28: 40000 | AE28: 99 | AF28: 7.065 | AG28: =AD28*AF28 -> 282600 | CO28: Mesistente | CV28: b | CW28: b' | CY28: Intonaci | DB28: fflex N/mm2 | DD28: Eint N/mm2 | DF28: tmin mm | DH28: ft N/mm2 | DI28: fc N/mm2 | DK28: Reti | DM28: ftmrete N | DN28: fcrete | DO28: Erete | DP28: passo mm | DQ28: sez. mm2 | DR28: Ear
D29: Muratura irregolare di pietra tenera | K29: 1.5 | L29: 1.2 | Z29: RG NET BA G33 | AB29: =VLOOKUP($Z$29,$Z$26:$AG$28,3,FALSE) -> 4500 | AD29: =VLOOKUP($Z$29,$Z$26:$AG$28,5,FALSE) -> 40000 | AE29: =VLOOKUP($Z$29,$Z$26:$AG$28,6,FALSE) -> 33 | AF29: =VLOOKUP($Z$29,$Z$26:$AG$28,7,FALSE) -> 7.065 | AG29: =VLOOKUP($Z$29,$Z$26:$AG$28,8,FALSE) -> 282600 | AU29: Mesistente | BB29: b | BC29: b' | BE29: Intonaci | BH29: fflex N/mm2 | BJ29: Eint N/mm2 | BL29: tmin mm | BN29: ft N/mm2 | BO29: fc N/mm2 | BQ29: Reti | BS29: ftmrete N | BT29: fcrete | BU29: Erete | BV29: passo mm | BW29: sez. mm2 | BX29: Ear | CO29: Muratura in pietrame disordinata | CV29: 1.5 | CW29: 1.4 | CY29: FM55 | DB29: 5 | DD29: 9000 | DF29: 15 | DH29: =DB29/1.4 -> 3.571428571 | DI29: 15 | DK29: RG NET BA G33 | DM29: 4500 | DO29: 40000 | DP29: 33 | DQ29: 7.065 | DR29: =DO29*DQ29 -> 282600
D30: Muratura a conci regolari di pietra tenera | K30: 1.5 | L30: 1.2 | AU30: Muratura in pietrame disordinata | BB30: 1.5 | BC30: 1.4 | BE30: FM55 | BH30: 5 | BJ30: 9000 | BL30: 15 | BN30: =BH30/1.4 -> 3.571428571 | BO30: 15 | BQ30: RG NET BA G33 | BS30: 4500 | BU30: 40000 | BV30: 33 | BW30: 7.065 | BX30: =BU30*BW30 -> 282600 | CO30: Muratura a conci sbozzati, con paramenti di spessore disomogeneo | CV30: 1.5 | CW30: 1.4 | CY30: BETM35-FIBRO | DB30: 8 | DD30: 39000 | DF30: 15 | DH30: =DB30/1.4 -> 5.714285714 | DI30: 35 | DK30: RG NET BA G66 | DM30: 4500 | DO30: 40000 | DP30: 66 | DQ30: 7.065 | DR30: =DO30*DQ30 -> 282600
D31: Muratura a blocchi lapidei squadrati | K31: 1.5 | L31: 1.2 | Z31: Intonaci | AC31: fflex N/mm2 | AE31: Eint N/mm2 | AG31: tmin mm | AI31: ft N/mm2 | AJ31: fc N/mm2 | AU31: Muratura a conci sbozzati, con paramenti di spessore disomogeneo | BB31: 1.5 | BC31: 1.4 | BE31: BETM35-FIBRO | BH31: 8 | BJ31: 39000 | BL31: 15 | BN31: =BH31/1.4 -> 5.714285714 | BO31: 35 | BQ31: RG NET BA G66 | BS31: 4500 | BU31: 40000 | BV31: 66 | BW31: 7.065 | BX31: =BU31*BW31 -> 282600 | CO31: Muratura in pietre a spacco con buona tessitura | CV31: 1.5 | CW31: 1.2 | CY31: BETM35-MEC | DB31: 7 | DD31: 39000 | DF31: 15 | DH31: =DB31/1.4 -> 5 | DI31: 35 | DK31: RG NET BA G99 | DM31: 4500 | DO31: 40000 | DP31: 99 | DQ31: 7.065 | DR31: =DO31*DQ31 -> 282600
D32: Muratura in mattoni pieni e malta di calce | K32: 1.3 | L32: 1 | Z32: FM55 | AC32: 5 | AE32: 9000 | AG32: 15 | AI32: =AC32/1.4 -> 3.571428571 | AJ32: 15 | AU32: Muratura in pietre a spacco con buona tessitura | BB32: 1.5 | BC32: 1.2 | BE32: BETM35-MEC | BH32: 7 | BJ32: 39000 | BL32: 15 | BN32: =BH32/1.4 -> 5 | BO32: 35 | BQ32: RG NET BA G99 | BS32: 4500 | BU32: 40000 | BV32: 99 | BW32: 7.065 | BX32: =BU32*BW32 -> 282600 | CO32: Muratura irregolare di pietra tenera | CV32: 1.5 | CW32: 1.2 | CY32: FM55 | DB32: =VLOOKUP($CY$32,$CY$29:$DI$31,4,FALSE) -> 5 | DD32: =VLOOKUP($CY$32,$CY$29:$DI$31,6,FALSE) -> 9000 | DF32: =VLOOKUP($CY$32,$CY$29:$DI$31,8,FALSE) -> 15 | DH32: =VLOOKUP($CY$32,$CY$29:$DI$31,10,FALSE) -> 3.571428571 | DI32: =VLOOKUP($CY$32,$CY$29:$DI$31,11,FALSE) -> 15 | DK32: RG NET BA G33 | DM32: =VLOOKUP($DK$32,$DK$29:$DR$31,3,FALSE) -> 4500 | DO32: =VLOOKUP($DK$32,$DK$29:$DR$31,5,FALSE) -> 40000 | DP32: =VLOOKUP($DK$32,$DK$29:$DR$31,6,FALSE) -> 33 | DQ32: =VLOOKUP($DK$32,$DK$29:$DR$31,7,FALSE) -> 7.065 | DR32: =VLOOKUP($DK$32,$DK$29:$DR$31,8,FALSE) -> 282600
D33: Muratura in mattoni semipieni con malta cementizia | K33: 1.3 | L33: 1 | Z33: BETM35-FIBRO | AC33: 8 | AE33: 39000 | AG33: 15 | AI33: =AC33/1.4 -> 5.714285714 | AJ33: 35 | AU33: Muratura irregolare di pietra tenera | BB33: 1.5 | BC33: 1.2 | BE33: FM55 | BH33: =VLOOKUP($BE$33,$BE$30:$BO$32,4,FALSE) -> 5 | BJ33: =VLOOKUP($BE$33,$BE$30:$BO$32,6,FALSE) -> 9000 | BL33: =VLOOKUP($BE$33,$BE$30:$BO$32,8,FALSE) -> 15 | BN33: =VLOOKUP($BE$33,$BE$30:$BO$32,10,FALSE) -> 3.571428571 | BO33: =VLOOKUP($BE$33,$BE$30:$BO$32,11,FALSE) -> 15 | BQ33: RG NET BA G33 | BS33: =VLOOKUP($BQ$33,$BQ$30:$BX$32,3,FALSE) -> 4500 | BU33: =VLOOKUP($BQ$33,$BQ$30:$BX$32,5,FALSE) -> 40000 | BV33: =VLOOKUP($BQ$33,$BQ$30:$BX$32,6,FALSE) -> 33 | BW33: =VLOOKUP($BQ$33,$BQ$30:$BX$32,7,FALSE) -> 7.065 | BX33: =VLOOKUP($BQ$33,$BQ$30:$BX$32,8,FALSE) -> 282600 | CO33: Muratura a conci regolari di pietra tenera | CV33: 1.5 | CW33: 1.2
D34: =Rif!D15 -> Muratura in pietrame disordinata | K34: =VLOOKUP($D$34,$D$26:$L$33,8,FALSE) -> 1.5 | L34: =VLOOKUP($D$34,$D$26:$L$33,9,FALSE) -> 1.4 | N34: Connettori | Z34: BETM35-MEC | AC34: 7 | AE34: 39000 | AG34: 15 | AI34: =AC34/1.4 -> 5 | AJ34: 35 | AU34: Muratura a conci regolari di pietra tenera | BB34: 1.5 | BC34: 1.2 | CO34: Muratura a blocchi lapidei squadrati | CV34: 1.5 | CW34: 1.2
N35: 1 | Q35: spessore intonaco | Z35: FM55 | AC35: =VLOOKUP($Z$35,$Z$32:$AJ$34,4,FALSE) -> 5 | AE35: =VLOOKUP($Z$35,$Z$32:$AJ$34,6,FALSE) -> 9000 | AG35: =VLOOKUP($Z$35,$Z$32:$AJ$34,8,FALSE) -> 15 | AI35: =VLOOKUP($Z$35,$Z$32:$AJ$34,10,FALSE) -> 3.571428571 | AJ35: =VLOOKUP($Z$35,$Z$32:$AJ$34,11,FALSE) -> 15 | AU35: Muratura a blocchi lapidei squadrati | BB35: 1.5 | BC35: 1.2 | CO35: Muratura in mattoni pieni e malta di calce | CV35: 1.3 | CW35: 1
D36: Sacco | E36: b | F36: b' | N36: 2 | Q36: 30 | R36: =VALUE(Q36) -> 30 | AU36: Muratura in mattoni pieni e malta di calce | BB36: 1.3 | BC36: 1 | CO36: Muratura in mattoni semipieni con malta cementizia | CV36: 1.3 | CW36: 1
D37: TRUE | E37: 1 | F37: 1.2 | N37: 3 | AU37: Muratura in mattoni semipieni con malta cementizia | BB37: 1.3 | BC37: 1 | CO37: =#REF! ->  | CV37: =VLOOKUP($CO$37,$CO$29:$CW$36,8,FALSE) ->  | CW37: =VLOOKUP($CO$37,$CO$29:$CW$36,9,FALSE) ->  | CY37: Connettori
D38: FALSE | E38: =K34 -> 1.5 | F38: =L34 -> 1.4 | N38: 4 | AU38: =#REF! ->  | BB38: =VLOOKUP($AU$38,$AU$30:$BC$37,8,FALSE) ->  | BC38: =VLOOKUP($AU$38,$AU$30:$BC$37,9,FALSE) ->  | BE38: Connettori | CY38: 1 | DB38: spessore intonaco
D39: FALSE | E39: =VLOOKUP($D$39,$D$37:$F$38,2,FALSE) -> 1.5 | F39: =VLOOKUP($D$39,$D$37:$F$38,3,FALSE) -> 1.4 | N39: 5 | BE39: 1 | BH39: spessore intonaco | CO39: Sacco | CP39: b | CQ39: b' | CY39: 2 | DB39: 30
N40: 6 | AU40: Sacco | AV40: b | AW40: b' | BE40: 2 | BH40: 30 | CO40: TRUE | CP40: 1 | CQ40: 1.2 | CY40: 3
D41: facce | E41: i1 | F41: i2 | G41: i3 | H41: g1 | I41: g2 | N41: 6 | AU41: TRUE | AV41: 1 | AW41: 1.2 | BE41: 3 | CO41: FALSE | CP41: =CV37 ->  | CQ41: =CW37 ->  | CY41: 4
D42: 2 | E42: 1 | F42: 0 | G42: 2 | H42: 1 | I42: 2 | AU42: FALSE | AV42: =BB38 ->  | AW42: =BC38 ->  | BE42: 4 | CO42: FALSE | CP42: =VLOOKUP($CO$42,$CO$40:$CQ$41,2,FALSE) ->  | CQ42: =VLOOKUP($CO$42,$CO$40:$CQ$41,3,FALSE) ->  | CY42: 5
D43: 1 | E43: 0 | F43: 0 | G43: 1 | H43: 0 | I43: 1 | AU43: FALSE | AV43: =VLOOKUP($AU$43,$AU$41:$AW$42,2,FALSE) ->  | AW43: =VLOOKUP($AU$43,$AU$41:$AW$42,3,FALSE) ->  | BE43: 5 | CY43: 6
D44: 1 | E44: =VLOOKUP($D$44,$D$42:$G$43,2,FALSE) -> 0 | F44: =VLOOKUP($D$44,$D$42:$G$43,3,FALSE) -> 0 | G44: =VLOOKUP($D$44,$D$42:$G$43,4,FALSE) -> 1 | H44: =VLOOKUP($D$44,$D$42:$I$43,5,FALSE) -> 0 | I44: =VLOOKUP($D$44,$D$42:$I$43,6,FALSE) -> 1 | BE44: 6 | CO44: facce | CP44: i1 | CQ44: i2 | CR44: i3 | CS44: g1 | CT44: g2 | CY44: 6
AU45: facce | AV45: i1 | AW45: i2 | AX45: i3 | AY45: g1 | AZ45: g2 | BE45: 6 | CO45: 2 | CP45: 1 | CQ45: 0 | CR45: 2 | CS45: 1 | CT45: 2
D46: tau | I46: compressione | W46: csi | AU46: 2 | AV46: 1 | AW46: 0 | AX46: 2 | AY46: 1 | AZ46: 2 | CO46: 1 | CP46: 0 | CQ46: 0 | CR46: 1 | CS46: 0 | CT46: 1
D47: =(1+($E$44*($E$39-1)+$F$44*($F$39-1)))*1.5*$M$21 -> 0.027 | E47: =$G$44*($AI$35*$Q$36/$F$23+$AG$29*'2'!$K$20/($F$23*$AE$29)) -> 0.3684704185 | I47: connessione trasversale | L47: =VLOOKUP($AF$20,I53:J54,2,FALSE) -> 2 | N47: Muratura in pietrame disordinata | V47: 1.5 | W47: 1.5 | AU47: 1 | AV47: 0 | AW47: 0 | AX47: 1 | AY47: 0 | AZ47: 1 | CO47: 1 | CP47: =VLOOKUP($CO$47,$CO$45:$CR$46,2,FALSE) -> 0 | CQ47: =VLOOKUP($CO$47,$CO$45:$CR$46,3,FALSE) -> 0 | CR47: =VLOOKUP($CO$47,$CO$45:$CR$46,4,FALSE) -> 1 | CS47: =VLOOKUP($CO$47,$CO$45:$CT$46,5,FALSE) -> 0 | CT47: =VLOOKUP($CO$47,$CO$45:$CT$46,6,FALSE) -> 1
A48: =0.5*('2'!$K$21*Rif!$Q$36)/(1.5*D49*(Rif!$Q$36+Rif!$F$23)) -> 1.724068729 | I48: intervento su due facce | L48: =$D$44 -> 1 | N48: Muratura a conci sbozzati, con paramenti di spessore disomogeneo | V48: 1.5 | W48: 1.5 | AU48: 1 | AV48: =VLOOKUP($AU$48,$AU$46:$AX$47,2,FALSE) -> 0 | AW48: =VLOOKUP($AU$48,$AU$46:$AX$47,3,FALSE) -> 0 | AX48: =VLOOKUP($AU$48,$AU$46:$AX$47,4,FALSE) -> 1 | AY48: =VLOOKUP($AU$48,$AU$46:$AZ$47,5,FALSE) -> 0 | AZ48: =VLOOKUP($AU$48,$AU$46:$AZ$47,6,FALSE) -> 1
A49: =2*('2'!$K$30)/(1.5*D49*(Rif!$F$23+Rif!$Q$36)*'2'!$K$32) -> 2.089780278 | D49: =($D$47+$E$47)/1.5/1 -> 0.2636469456 | E49: =3.5*$M$21 -> 0.063 | I49: Numero di connett. | L49: =$N$41 -> 6 | N49: Muratura in pietre a spacco con buona tessitura | V49: 1.05 | W49: 1.5 | CO49: tau | CT49: compressione | DH49: csi
I50: k3 | L50: =VLOOKUP(D34,N47:V55,9,FALSE) -> 1.5 | N50: Muratura irregolare di pietra tenera | V50: 1.05 | W50: 1.5 | AU50: tau | AZ50: compressione | BN50: csi | CO50: =(1+($CP$47*($CP$42-1)+$CQ$47*($CQ$42-1)))*1.5*$CX$24 ->  | CP50: =$CR$47*($DH$32*$DB$39/$CQ$26+$DR$32*'2'!$K$20/($CQ$26*$DP$32)) -> 0.3349731077 | CT50: connessione trasversale | CW50: =$DQ$23 -> FALSE | CY50: Muratura in pietrame disordinata | DG50: 1.5 | DH50: 1.5
I51: k | L51: =IF(AND($L$47=2,$L$48=2,VALUE($L$49)>=6),$L$50,1) -> 1 | N51: Muratura a conci regolari di pietra tenera | V51: 1.05 | W51: 1.5 | AU51: =(1+($AV$48*($AV$43-1)+$AW$48*($AW$43-1)))*1.5*$BD$25 ->  | AV51: =$AX$48*($BN$33*$BH$40/$AW$27+$BX$33*'2'!$K$20/($AW$27*$BV$33)) -> 0.3349731077 | AZ51: connessione trasversale | BC51: =$BW$24 -> FALSE | BE51: Muratura in pietrame disordinata | BM51: 1.5 | BN51: 1.5 | CT51: intervento su due facce | CW51: =$CO$47 -> 1 | CY51: Muratura a conci sbozzati, con paramenti di spessore disomogeneo | DG51: 1.5 | DH51: 1.5
D52: E | E52: =$D$53+$E$53 -> 650 | N52: Muratura a blocchi lapidei squadrati | V52: 1.05 | W52: 1.5 | AZ52: intervento su due facce | BC52: =$AU$48 -> 1 | BE52: Muratura a conci sbozzati, con paramenti di spessore disomogeneo | BM52: 1.5 | BN52: 1.5 | CO52: =($CO$50+$CP$50)/1.5/1 ->  | CP52: =3.5*CX24 ->  | CT52: Numero di connett. | CW52: =$CY$44 -> 6 | CY52: Muratura in pietre a spacco con buona tessitura | DG52: 1.05 | DH52: 1.5
D53: =(1+$H$44*($W$55-1))*$S$21 -> 290 | E53: =$I$44*(0.4*$AE$35*$Q$36/$F$23) -> 360 | I53: TRUE | J53: 1 | N53: Muratura in mattoni pieni e malta di calce | V53: 1.05 | W53: 1.3 | AU53: =($AU$51+$AV$51)/1.5/1 ->  | AV53: =3.5*BD25 ->  | AZ53: Numero di connett. | BC53: =$BE$45 -> 6 | BE53: Muratura in pietre a spacco con buona tessitura | BM53: 1.05 | BN53: 1.5 | CT53: k3 | CW53: =VLOOKUP(CO37,CY50:DG58,9,FALSE) ->  | CY53: Muratura irregolare di pietra tenera | DG53: 1.05 | DH53: 1.5
I54: FALSE | J54: 2 | N54: Muratura in mattoni semipieni con malta cementizia | V54: 1 | W54: 1.3 | AZ54: k3 | BC54: =VLOOKUP(AU38,BE51:BM59,9,FALSE) ->  | BE54: Muratura irregolare di pietra tenera | BM54: 1.05 | BN54: 1.5 | CT54: k | CW54: =IF($CW$50="falso",1,IF($CW$51="1",1,IF($CW$52<6,1,$CW$53))) ->  | CY54: Muratura a conci regolari di pietra tenera | DG54: 1.05 | DH54: 1.5
I55: =VLOOKUP(AF20,I53:J54,2,FALSE) -> 2 | W55: =VLOOKUP(D34,N47:W54,10,FALSE) -> 1.5 | AZ55: k | BC55: =IF($BC$51="falso",1,IF($BC$52="1",1,IF($BC$53<6,1,$BC$54))) ->  | BE55: Muratura a conci regolari di pietra tenera | BM55: 1.05 | BN55: 1.5 | CO55: E | CP55: =$CO$56+$CP$56 ->  | CY55: Muratura a blocchi lapidei squadrati | DG55: 1.05 | DH55: 1.5
AU56: E | AV56: =$AU$57+$AV$57 ->  | BE56: Muratura a blocchi lapidei squadrati | BM56: 1.05 | BN56: 1.5 | CO56: =(1+$CS$47*($DH$58-1))*$DD$24 ->  | CP56: =$CT$47*(0.4*$DD$32*$DB$39/$CQ$26) -> 327.2727273 | CY56: Muratura in mattoni pieni e malta di calce | DG56: 1.05 | DH56: 1.3
AU57: =(1+$AY$48*($BN$59-1))*$BJ$25 ->  | AV57: =$AZ$48*(0.4*$BJ$33*$BH$40/$AW$27) -> 327.2727273 | BE57: Muratura in mattoni pieni e malta di calce | BM57: 1.05 | BN57: 1.3 | CY57: Muratura in mattoni semipieni con malta cementizia | DG57: 1 | DH57: 1.3
BE58: Muratura in mattoni semipieni con malta cementizia | BM58: 1 | BN58: 1.3 | DH58: =VLOOKUP(CO37,CY50:DH57,10,FALSE) -> 
BN59: =VLOOKUP(AU38,BE51:BN58,10,FALSE) -> 

Sheet 0
B2: CRM - SISTEMA CONSOLIDA E RINFORZA
B4: La soluzione tecnica proposta e i dati riportati vengono forniti esclusivamente a titolo di servizio Tecnico-Commerciale nell’ambito dell’attività di vendita esercitata da Ferri SRL.; i medesimi dati non costituiscono in alcun modo specifica tecnica e sono puramente indicativi in quanto risultanti dalla elaborazione dei dati base di “input” (a titolo esemplificativo: tipologia di muratura, spessore della muratura, livello di conoscenza, parametri migliorativi, etc.) forniti dal Cliente. Ferri SRL è azienda unicamente fornitrice dei materiali per uso professionale e non può ad alcun titolo ritenersi responsabile della correttezza e adeguatezza del dimensionamento della sezione composta e della relazione tecnica allo specifico intervento nel quale il Cliente intende utilizzare gli elementi di consolidamento. Sono di esclusiva competenza e responsabilità del Cliente la valutazione e la verifica di adeguatezza, congruità, adattabilità e utilizzabilità del presente documento tecnico all’impiego previsto; il Cliente solleva ed esonera pertanto Ferri SRL da ogni responsabilità al riguardo. La presente relazione tecnica non può in alcun modo essere utilizzata per il deposito presso gli Uffici Tecnici competenti. La verifica di correttezza e adeguatezza della relazione tecnica allo specifico intervento nel quale il Cliente intende utilizzare gli elementi di consolidamento deve sempre essere valutata e certificata da un professionista tecnico abilitato ai sensi di legge.
B21: Versione programma: | D21: 1.01 | L21: 2021-03-01
C25: via Emilia Ovest, 58 – Rimale 43036 Fidenza (PR) | J25: www.ferrimix.it
C26: +39 0524 520312 | J26: infoferri@ferrimix.it
C27: +39 0524 520314

Sheet 1
G3: DEFINIZIONE MURATURA ESISTENTE
C9: Tipologia di muratura secondo NTC
C11: Spessore del paramento
D14: Livello di conoscenza | I14: Parametri migliorativi
E15: Sceglere il livello di conoscenza raggiunto per la muratura oggetto d'intervento
C19: Caratteristiche meccaniche muratura esistente
C20: Resistenza media a compressione | J20: f | K20: =Rif!K21 -> 1 | L20: N/mm2
C21: Resistenza media a taglio in assenza di sforzi normali | J21: τ0 | K21: =Rif!M21 -> 0.018 | L21: N/mm2
C22: Valore medio del modulo di elasticità normale | J22: E | K22: =Rif!Q21 -> 870 | L22: N/mm2
C23: Valore medio del modulo di elasticità tangenziale | J23: G | K23: =Rif!S21 -> 290 | L23: N/mm2

Sheet 1 (2)
G3: DEFINIZIONE MURATURA ESISTENTE
C9: Tipologia di muratura secondo NTC
C11: Spessore del paramento
D14: Livello di conoscenza | I14: Parametri migliorativi
E15: Sceglere il livello di conoscenza raggiunto per la muratura oggetto d'intervento | I15: In LC3 i parametri migliorativi vengono quantificati nella fase di definizione delle caratteristiche meccaniche.
C19: Caratteristiche meccaniche muratura esistente
C20: Resistenza media a compressione | J20: f
C21: Resistenza media a taglio in assenza di sforzi normali | J21: τ0
C22: Valore medio del modulo di elasticità normale | J22: E
C23: Valore medio del modulo di elasticità tangenziale | J23: G

Sheet 1 (3)
G3: DEFINIZIONE MURATURA ESISTENTE
C9: Tipologia più prossima secondo NTC
C11: Spessore del paramento
D14: Livello di conoscenza | I14: Parametri migliorativi
D15: Il livello di conoscenza non è applicabile alla muratura definita dall'utente. | I15: I parametri migliorativi non sono applicabili alla muratura definita da utente
C19: Caratteristiche meccaniche muratura esistente
C20: Resistenza media a compressione | J20: f
C21: Resistenza media a taglio in assenza di sforzi normali | J21: τ0
C22: Valore medio del modulo di elasticità normale | J22: E
C23: Valore medio del modulo di elasticità tangenziale | J23: G

Sheet 2
G3: DEFINIZIONE DEL RINFORZO
C7: Tipologia d'intervento | G7: Paramento a sacco
C12: CARATTERISTICHE DELL'INTONACO
C15: Tipologia intonaco | I15: Spessore intonaco
C17: Parametri meccanici intonaco
C18: Resistenza a trazione | J18: ft,int | K18: =Rif!$AI$35 -> 3.571428571 | L18: N/mm2
C19: Modulo elastico | J19: Eint | K19: =Rif!$AE$35 -> 9000 | L19: N/mm2
C20: Rapporto f/E | J20: εint | K20: =$K$18/$K$19 -> 0.0003968253968
C21: Resistenza a compressione | J21: fc | K21: =Rif!$AJ$35 -> 15 | L21: N/mm2
C24: CARATTERISTICHE RETE
C27: Tipologia rete | J27: Connettori al m2
C29: Parametri meccanici rete
C30: Resistenza a trazione | J30: ft,rete | K30: =Rif!$AB$29 -> 4500 | L30: N
C31: Rigidezza assiale | J31: EAr | K31: =Rif!$AG$29 -> 282600 | L31: N/mm2
C32: Passo della maglia | J32: p | K32: =Rif!$AE$29 -> 33 | L32: mm

Sheet 2 (2)
G3: DEFINIZIONE DEL RINFORZO
C7: Tipologia d'intervento | G7: Paramento a sacco
C12: CARATTERISTICHE DELL'INTONACO
C15: Tipologia intonaco | I15: Spessore intonaco
C17: Parametri meccanici intonaco
C18: Resistenza a trazione | J18: ft,int | K18: =Rif!$AI$35 -> 3.571428571 | L18: N/mm2
C19: Modulo elastico | J19: Eint | K19: =Rif!$AE$35 -> 9000 | L19: N/mm2
C20: Rapporto f/E | J20: εint | K20: =$K$18/$K$19 -> 0.0003968253968
C21: Resistenza a compressione | J21: fc | K21: =Rif!$AJ$35 -> 15 | L21: N/mm2
C24: CARATTERISTICHE RETE
C27: Tipologia rete | J27: Connettori al m2
C29: Parametri meccanici rete
C30: Resistenza a trazione | J30: ft,rete | K30: =Rif!$AB$29 -> 4500 | L30: N
C31: Rigidezza assiale | J31: EAr | K31: =Rif!$AG$29 -> 282600 | L31: N/mm2
C32: Passo della maglia | J32: p | K32: =Rif!$AE$29 -> 33 | L32: mm

Sheet 3
G3: MURATURA RINFORZATA
C8: RIEPILOGO PARAMETRI IMMESSI
C11: Tipologia di muratura | F11: =Rif!$D$15 -> Muratura in pietrame disordinata
C13: Spessore muratura | E13: =Rif!$F$23 -> 300 | F13: mm | H13: Livello di conoscenza | K13: =Rif!$G$17 -> LC1
C15: Tipologia intonaco | E15: =Rif!$Z$35 -> FM55 | I15: Spessore intonaco | K15: =Rif!$Q$36 -> 30 | L15: mm
C17: Tipologia rete | E17: =Rif!$Z$29 -> RG NET BA G33 | I17: Connettori al m2 | K17: =Rif!$N$41 -> 6
C20: CARATTERISTICHE MECCANICHE MURATURA RINFORZATA
C23: Parametri meccanici muratura rinforzata
C24: Resistenza a compressione | J24: fm,r | K24: =Rif!$K$21*Rif!$L$51 -> 1 | L24: N/mm2
C25: Incremento massimo consentito | F25: =(Rif!L50-1) -> 0.5 | G25: Incremento conseguito | J25: =K24/Rif!K21-1 -> 0
C27: Resistenza a taglio | J27: τ0,r | K27: =MIN(Rif!$D$49:$E$49) -> 0.063 | L27: N/mm2
C28: Incremento massimo consentito | F28: 2.5 | G28: Incremento conseguito | J28: ='3'!K27/Rif!M21-1 -> 2.5
C30: Modulo di elasticità normale | J30: Em,r | K30: =K33/0.4 -> 1625 | L30: N/mm2
C31: Incremento conseguito | F31: =K30/Rif!Q21-1 -> 0.867816092
C33: Modulo di elasticità tangenziale | J33: Gm,r | K33: =Rif!E52 -> 650 | L33: N/mm2
C34: Incremento conseguito | F34: =K33/Rif!S21-1 -> 1.24137931
C36: Bilanciamento intervento
C37: =IF(OR(K37<0.6),"ATTENZIONE-ERRORE modificare rinforzo","Intonaco bilanciato") -> Intonaco bilanciato | J37: δ1 | K37: =0.5*('2'!$K$21*Rif!$Q$36)/(1.5*Rif!D49*IF(Rif!D44=1,(Rif!$Q$36+Rif!$F$23),(Rif!$Q$36*2+Rif!$F$23))) -> 1.724068729
C38: =IF(OR(K38<0.6),"ATTENZIONE-ERRORE modificare rinforzo","Rete bilanciata") -> Rete bilanciata | J38: δ2 | K38: =2*('2'!$K$30)/(1.5*Rif!D49*IF(Rif!D44=1,(Rif!$Q$36+Rif!$F$23),(Rif!$Q$36*2+Rif!$F$23))*'2'!$K$32) -> 2.089780278
C39: Rapporto di bilanciamento (si consigliano valori >1.00) | J39: δ3 | K39: =K37/K38 -> 0.825
C41: =IF(AND(K37>0.6,K38>0.6,VALUE(K15)>=30,VALUE(K15)<=50),"Rinforzo dimensionato correttamente","Errore nel progetto") -> Rinforzo dimensionato correttamente

Sheet 3 (2)
G3: MURATURA RINFORZATA
C8: RIEPILOGO PARAMETRI IMMESSI
C11: Tipologia di muratura da NTC | F11: =Rif!$D$15 -> Muratura in pietrame disordinata
C13: Spessore muratura | E13: =Rif!$F$23 -> 300 | F13: mm
C15: Tipologia intonaco | E15: =Rif!$Z$35 -> FM55 | I15: Spessore intonaco | K15: =Rif!$Q$36 -> 30 | L15: mm
C17: Tipologia rete | E17: =Rif!$Z$29 -> RG NET BA G33 | I17: Connettori al m2 | K17: =Rif!$N$41 -> 6
C20: CARATTERISTICHE MECCANICHE MURATURA RINFORZATA
C23: Parametri meccanici muratura rinforzata
C24: Resistenza a compressione | J24: fm,r | K24: =Rif!$K$21*Rif!$L$51 -> 1 | L24: N/mm2
C25: Incremento massimo consentito | F25: =(Rif!L50-1) -> 0.5 | G25: Incremento conseguito | J25: =K24/Rif!K21-1 -> 0
C27: Resistenza a taglio | J27: τ0,r | K27: =MIN(Rif!$D$49:$E$49) -> 0.063 | L27: N/mm2
C28: Incremento massimo consentito | F28: 2.5 | G28: Incremento conseguito | J28: ='3'!K27/Rif!M21-1 -> 2.5
C30: Modulo di elasticità normale | J30: Em,r | K30: =K33/0.4 -> 1625 | L30: N/mm2
C31: Incremento conseguito | F31: =K30/Rif!Q21-1 -> 0.867816092
C33: Modulo di elasticità tangenziale | J33: Gm,r | K33: =Rif!E52 -> 650 | L33: N/mm2
C34: Incremento conseguito | F34: =K33/Rif!S21-1 -> 1.24137931
C36: Bilanciamento intervento
C37: =IF(OR(K37<0.6),"ATTENZIONE-ERRORE modificare rinforzo","Intonaco bilanciato") -> Intonaco bilanciato | J37: δ1 | K37: =0.5*('2'!$K$21*Rif!$Q$36)/(1.5*Rif!D49*IF(Rif!D44=1,(Rif!$Q$36+Rif!$F$23),(Rif!$Q$36*2+Rif!$F$23))) -> 1.724068729
C38: =IF(OR(K38<0.6),"ATTENZIONE-ERRORE modificare rinforzo","Rete bilanciata") -> Rete bilanciata | J38: δ2 | K38: =2*('2'!$K$30)/(1.5*Rif!D49*IF(Rif!D44=1,(Rif!$Q$36+Rif!$F$23),(Rif!$Q$36*2+Rif!$F$23))*'2'!$K$32) -> 2.089780278
C39: Rapporto di bilanciamento (si consigliano valori >1.00) | J39: δ3 | K39: =K37/K38 -> 0.825
C41: =IF(AND(K37>=0.6,K38>=0.6,VALUE(K15)>=30,VALUE(K15)<=50),"Rinforzo dimensionato correttamente","Errore nel progetto") -> Rinforzo dimensionato correttamente
